bitfinex-derivatives/quotes_ETHF0:USTF0_20250816
["timestamp","ask_amount","ask_price","bid_price","bid_amount"]
[1755368203555,0.2482,4421.8,4421.7,3.2078]
[1755368203951,0.43246395,4421.8,4421.7,24.33104172]
[1755368204153,0.18426395,4421.8,4421.7,3.39304172]
[1755368204456,0.3948,4422.6,4421.7,3.39304172]
[1755368204457,0.8504,4422.6,4421.7,6.39270272]
[1755368204664,1.5092,4422.6,4422.5,3.2078]
[1755368204857,1.75952263,4422.6,4422.5,24.33070272]
[1755368205059,1.93939978,4422.6,4422.5,24.32970272]
[1755368205260,1.93939978,4422.6,4422.5,20.936]
[1755368205559,1.93939978,4422.6,4422.0,3.2078]
[1755368205766,1.5092,4422.2,4422.1,20.938]
[1755368205960,1.75952263,4422.2,4422.1,20.938]
[1755368206157,0.5122,4422.1,4421.4,3.2078]
[1755368206362,1.5092,4421.6,4421.5,0.18452885]
[1755368206663,1.75952263,4421.6,4421.5,21.12252885]
[1755368207071,0.643,4422.6,4421.5,21.14412885]
[1755368207262,1.1144,4422.5,4422.4,3.2078]
[1755368207462,0.686,4422.5,4422.4,24.2128]
[1755368207660,0.2482,4422.5,4422.4,24.2128]
[1755368207865,0.686,4422.5,4422.4,24.2128]
[1755368208067,1.5092,4422.5,4422.4,24.2128]
[1755368208274,1.5092,4422.5,4422.4,24.2098]
[1755368208574,1.1144,4422.5,4422.4,24.2098]
[1755368209271,1.1144,4422.5,4422.4,3.2078]
[1755368209470,1.4836,4422.5,4422.4,24.2048]
[1755368209870,1.4836,4422.5,4422.4,3.2078]
[1755368210069,1.4836,4422.5,4422.4,24.1988]
[1755368210368,4.5062,4422.5,4421.4,3.2078]
[1755368210568,0.5795,4421.6,4421.5,22.4654]
[1755368210769,0.8419,4422.2,4422.1,0.6]
[1755368210970,1.476,4422.2,4422.1,22.2205]
[1755368211167,3.2078,4422.6,4422.1,22.2205]
[1755368211372,1.476,4422.3,4422.2,1.2205]
[1755368211567,1.476,4422.3,4422.2,0.2655]
[1755368211870,1.476,4422.0,4421.9,3.2078]
[1755368212068,1.476,4422.0,4421.9,20.997]
[1755368212270,1.476,4422.0,4421.9,22.2175]
[1755368213374,1.476,4422.0,4421.9,21.965]
[1755368213572,1.476,4422.0,4421.9,0.968]
[1755368213772,1.476,4422.0,4421.9,21.6]
[1755368214469,0.594,4421.5,4421.4,3.8078]
[1755368214676,1.476,4421.5,4421.4,25.4203]
[1755368214868,0.2479,4421.7,4421.4,24.7998]
[1755368215067,0.2479,4421.7,4421.6,0.6]
[1755368215272,0.2479,4421.7,4421.6,1.4774]
[1755368215472,0.3692,4422.0,4421.6,0.6]
[1755368215667,0.4187,4421.9,4421.8,1.1094]
[1755368215870,1.476,4421.9,4421.8,0.8052]
[1755368216173,1.476,4421.9,4421.8,21.2535]
[1755368216371,1.476,4421.9,4421.4,3.8283]
[1755368216572,0.594,4421.6,4421.5,21.953]
[1755368216765,0.8419,4421.6,4421.4,3.2078]
[1755368216968,0.8419,4421.6,4421.5,20.982]
[1755368216969,1.476,4421.6,4421.5,20.982]
[1755368217165,1.476,4421.5,4421.4,3.2078]
[1755368217368,1.476,4421.0,4420.9,3.2078]
[1755368217568,0.5128,4421.6,4421.0,0.6205]
[1755368217771,1.1068,4421.6,4421.5,1.2205]
[1755368217977,1.1068,4421.6,4421.5,22.2095]
[1755368218272,1.1068,4421.6,4421.5,22.4664]
[1755368218571,0.2479,4421.6,4421.5,22.4664]
[1755368218778,0.2479,4421.8,4421.7,0.6]
[1755368219079,0.2479,4421.8,4421.7,1.4774]
[1755368219080,0.6708536,4421.8,4421.7,1.4774]
[1755368219272,1.3589536,4421.8,4421.7,1.2205]
[1755368219473,1.7281536,4421.8,4421.7,1.2205]
[1755368220476,1.476,4421.5,4421.4,3.2078]
[1755368220776,0.2624,4421.0,4420.9,3.4733]
[1755368221073,1.476,4420.5,4420.4,4.4283]
[1755368221272,0.882,4422.0,4420.5,0.8774]
[1755368221471,1.13428397,4421.9,4421.1,0.6205]
[1755368221666,0.2479,4421.7,4421.2,21.057]
[1755368221880,1.72828397,4421.6,4421.5,0.6335]
[1755368222078,1.72828397,4421.6,4421.5,1.2205]
[1755368222268,1.35908397,4421.6,4421.5,1.2205]
[1755368222670,0.25228397,4421.6,4421.5,4.6852]
[1755368223379,1.476,4421.9,4421.8,0.6]
[1755368223576,1.72832981,4421.9,4421.8,22.2775]
[1755368223871,1.72832981,4421.9,4421.8,21.654]
[1755368224179,1.72832981,4421.9,4421.8,21.4912]
[1755368224879,1.72832981,4421.9,4421.8,21.3125]
[1755368225974,1.72832981,4421.9,4421.8,21.6805]
[1755368226171,0.25232981,4421.9,4421.8,22.2675]
[1755368226374,0.8419,4422.7,4422.6,0.6]
[1755368226587,1.1068,4422.7,4422.6,22.2585]
[1755368226876,0.83199599,4422.7,4422.6,22.5154]
[1755368228884,1.09689599,4422.7,4422.6,22.5154]
[1755368229083,1.35929599,4422.7,4422.6,22.5154]
[1755368229288,0.25249599,4422.7,4422.6,22.5154]
[1755368230981,0.2479,4422.7,4422.6,22.5154]
[1755368231182,1.476,4422.7,4422.6,22.006]
[1755368231487,1.70546656,4422.7,4422.6,22.006]
[1755368231780,1.70546656,4422.7,4422.6,22.2585]
[1755368232882,0.22946656,4422.7,4422.6,22.5154]
[1755368233283,0.22946656,4422.7,4422.6,22.69873995]
[1755368235388,0.64816656,4422.7,4422.6,22.69873995]
[1755368235584,0.65757362,4422.7,4422.6,22.6987372]
[1755368235784,0.92247362,4422.7,4422.6,22.6987372]
[1755368235979,0.92247409,4422.7,4422.6,22.69874081]
[1755368236784,1.08327409,4422.7,4422.6,22.69874081]
[1755368238085,0.23887409,4422.7,4422.6,22.69874081]
[1755368238584,0.23882215,4422.7,4422.6,22.69872478]
[1755368240488,0.49282215,4422.7,4422.6,22.69872478]
[1755368242590,0.23882215,4422.7,4422.6,22.69872478]
[1755368244392,0.23882215,4422.7,4422.6,22.5154]
[1755368244587,0.23882215,4422.7,4422.6,22.69233009]
[1755368244793,0.23882215,4422.7,4422.6,22.5154]
[1755368244989,3.2078,4423.8,4422.6,21.638]
[1755368245190,0.8748,4422.9,4422.8,0.5798]
[1755368245394,1.48907986,4422.9,4422.8,25.6536]
[1755368245586,1.48907986,4422.9,4422.8,25.4007]
[1755368245787,1.74307986,4422.9,4422.8,25.4007]
[1755368247189,0.22527986,4422.9,4422.8,28.85261]
[1755368247491,0.8748,4424.1,4424.0,0.2395]
[1755368247688,1.5178,4424.1,4424.0,21.2165]
[1755368249400,1.5178,4423.7,4423.6,3.2078]
[1755368249595,1.5178,4423.7,4423.6,24.1818]
[1755368249899,1.5178,4423.7,4423.6,3.2078]
[1755368250196,1.5178,4423.7,4423.6,24.1778]
[1755368251796,0.6315,4423.7,4423.1,3.2078]
[1755368251990,0.6315,4423.7,4423.2,20.959]
[1755368251991,0.2659,4423.3,4423.2,20.959]
[1755368252195,1.5178,4423.3,4423.2,20.959]
[1755368252385,0.6089,4423.3,4423.1,3.2078]
[1755368252586,0.343,4422.7,4422.6,3.2078]
[1755368252792,0.343,4422.7,4422.6,20.96]
[1755368252793,0.8855,4422.7,4422.6,20.96]
[1755368252999,0.343,4422.2,4422.1,24.1678]
[1755368253290,0.8629,4422.2,4422.1,24.1678]
[1755368253492,0.8629,4422.2,4422.1,25.6266]
[1755368253696,0.8629,4422.2,4422.1,3.2078]
[1755368253886,0.8629,4422.2,4422.1,24.1858]
[1755368254090,0.5199,4422.1,4421.6,3.4473]
[1755368254300,0.8629,4421.7,4421.6,4.0447]
[1755368254499,0.8855,4421.7,4421.6,3.2078]
[1755368254686,0.8629,4420.8,4420.7,3.9878]
[1755368255090,0.8629,4420.8,4420.7,24.4313]
[1755368255493,0.8629,4420.8,4420.7,3.4473]
[1755368255693,3.8629,4420.8,4420.7,3.2078]
[1755368255902,3.343,4420.8,4420.4,20.984]
[1755368256093,0.343,4420.5,4420.4,20.984]
[1755368256292,0.8629,4420.5,4420.4,20.984]
[1755368256895,0.8629,4420.1,4420.0,3.2078]
[1755368257097,0.8629,4420.1,4420.0,24.2148]
[1755368257298,0.343,4420.1,4419.3,3.2078]
[1755368257495,0.8629,4419.4,4419.3,3.2078]
[1755368257894,0.8629,4419.4,4419.3,24.2188]
[1755368258699,0.8629,4419.4,4419.3,3.2078]
[1755368259094,0.8629,4419.4,4419.3,21.006]
[1755368259294,0.8629,4419.4,4418.6,35.7718]
[1755368259493,0.343,4418.8,4418.7,21.42]
[1755368259696,0.8629,4418.8,4418.7,22.4678]
[1755368260499,0.8629,4418.8,4418.7,22.2107]
[1755368261102,0.8629,4418.8,4418.7,21.016]
[1755368261800,0.8629,4418.8,4418.7,21.2555]
[1755368261996,0.5199,4419.3,4418.8,0.369]
[1755368262302,0.8629,4419.3,4419.2,1.4588]
[1755368262495,0.8629,4419.3,4419.2,22.4838]
[1755368262890,0.2659,4419.8,4419.3,0.6219]
[1755368263102,0.5199,4420.4,4419.8,0.7907]
[1755368263303,0.343,4419.9,4419.8,1.2017]
[1755368263495,0.8629,4419.9,4419.8,22.2277]
[1755368263799,0.6089,4419.9,4419.8,22.4848]
[1755368265696,0.254,4420.3,4419.8,22.4848]
[1755368265896,0.2659,4420.2,4420.1,0.5798]
[1755368266094,0.8629,4420.2,4420.1,22.4848]
[1755368266602,0.6089,4420.2,4420.1,22.4848]
[1755368266803,0.254,4420.5,4420.1,22.4848]
[1755368267002,0.8629,4420.5,4420.4,1.4588]
[1755368267203,0.8629,4420.5,4420.4,22.2177]
[1755368267407,0.8629,4420.5,4420.4,21.9648]
[1755368267902,0.8629,4420.5,4420.4,22.2177]
[1755368268605,0.343,4420.5,4420.4,22.4717]
[1755368269006,0.5958,4420.5,4420.4,22.4717]
[1755368269507,0.8535,4420.5,4420.4,22.4717]
[1755368271204,0.8535,4420.5,4420.4,0.8327]
[1755368271398,0.6002,4420.2,4420.1,0.2614]
[1755368271605,0.8579,4420.2,4420.1,21.002]
[1755368272007,0.5105,4421.3,4420.2,0.8862]
[1755368272303,0.5105,4421.1,4420.4,0.6322]
[1755368272510,0.6051,4420.6,4420.5,22.2346]
[1755368272704,0.8579,4420.6,4420.5,22.4886]
[1755368275813,3.2078,4421.4,4420.5,22.4886]
[1755368276005,0.3474,4420.6,4420.5,22.4886]
[1755368276911,0.6002,4420.6,4420.5,22.4886]
[1755368278415,0.2528,4420.9,4420.5,21.6024]
[1755368278615,0.6051,4420.9,4420.8,1.4856]
[1755368278817,0.6051,4420.9,4420.8,22.4586]
[1755368279119,0.8579,4420.9,4420.8,22.2046]
[1755368280122,0.8579,4420.9,4420.4,3.4704]
[1755368280426,0.8579,4420.6,4420.5,21.594]
[1755368280616,0.8579,4420.6,4420.5,22.0186]
[1755368280824,0.8579,4420.6,4420.5,22.1946]
[1755368281219,0.8579,4420.6,4420.5,22.4486]
[1755368284229,1.06273778,4420.6,4420.5,22.4486]
[1755368285529,1.06273778,4420.6,4420.5,22.1946]
[1755368286120,1.06273778,4420.6,4420.5,0.2614]
[1755368286321,1.06273778,4420.6,4420.5,20.936]
[1755368286732,0.8579,4420.5,4420.4,3.2078]
[1755368286931,1.06277197,4420.5,4420.4,24.1428]
[1755368287132,1.06277197,4420.5,4420.4,3.2078]
[1755368287328,1.06277197,4420.5,4420.4,24.1418]
[1755368287526,1.06277197,4420.5,4420.4,24.1408]
[1755368287928,0.5105,4420.4,4420.0,0.8936]
[1755368288132,0.8579,4420.1,4420.0,1.0556]
[1755368288323,0.8579,4420.1,4420.0,21.9866]
[1755368288523,0.8579,4420.1,4420.0,22.1626]
[1755368288733,0.8579,4420.1,4420.0,22.4166]
[1755368289734,0.8579,4420.1,4420.0,1.2316]
[1755368290124,0.8579,4420.1,4420.0,22.1536]
[1755368290325,1.06294447,4420.1,4420.0,22.1536]
[1755368291034,0.3474,4419.8,4419.7,3.2078]
[1755368291227,0.5105,4419.7,4419.2,3.2078]
[1755368291428,0.8579,4419.3,4419.2,3.2078]
[1755368291633,1.06305869,4419.3,4419.2,3.2078]
[1755368292234,1.06323883,4419.3,4419.2,3.2078]
[1755368293235,0.8579,4418.7,4418.6,36.1414]
[1755368293533,1.06317911,4418.7,4418.1,0.8936]
[1755368293734,0.8579,4418.3,4418.2,21.1864]
[1755368293938,0.8579,4418.3,4418.2,21.718]
[1755368294236,0.8579,4418.3,4418.2,21.9806]
[1755368294629,0.8579,4418.3,4418.2,22.4106]
[1755368294836,0.5105,4419.1,4418.3,0.8862]
[1755368295133,1.06303922,4419.0,4418.9,0.2614]
[1755368295334,0.3474,4418.1,4418.0,0.969]
[1755368295531,0.2528,4418.5,4418.1,0.3696]
[1755368295732,0.6002,4419.1,4419.0,0.338]
[1755368295935,0.20497109,4419.1,4419.0,1.4856]
[1755368296342,0.80517109,4419.1,4419.0,1.4856]
[1755368297242,0.8050303,4419.1,4419.0,1.4856]
[1755368298138,0.6002,4419.1,4419.0,1.4856]
[1755368299950,0.80495216,4419.1,4419.0,1.4856]
[1755368300350,0.6002,4419.1,4419.0,1.4856]
[1755368301757,0.3256,4419.2,4419.1,1.0464]
[1755368301955,0.3256,4419.2,4419.1,1.4652]
[1755368302155,0.1644,4419.2,4419.1,1.4652]
[1755368302353,3.2078,4419.8,4419.2,0.2415]
[1755368302649,3.2078,4420.3,4419.6,0.6057]
[1755368302848,3.2078,4420.3,4420.1,1.4652]
[1755368303056,3.2078,4420.3,4420.2,22.3982]
[1755368303446,0.58,4420.3,4420.2,21.5161]
[1755368304051,0.2565,4421.7,4421.6,0.2401]
[1755368304256,1.04419666,4421.7,4421.6,0.9735]
[1755368304456,1.04419666,4421.7,4421.6,1.4652]
[1755368304754,1.04549666,4421.7,4421.6,1.4652]
[1755368306944,0.20449666,4421.7,4421.6,1.215]
[1755368307145,0.261,4422.1,4421.7,0.8821]
[1755368307350,0.8431,4421.8,4421.7,1.0464]
[1755368307546,0.8431,4421.8,4421.7,22.0214]
[1755368307751,0.8431,4421.8,4421.7,22.192]
[1755368307952,0.8431,4421.8,4421.7,22.4422]
[1755368310561,0.841,4421.8,4421.7,22.4422]
[1755368312057,0.841,4421.8,4421.7,1.4652]
[1755368312263,0.4209,4421.3,4421.2,1.215]
[1755368312462,0.841,4421.3,4421.2,22.4172]
[1755368312665,0.8431,4421.3,4421.2,22.166]
[1755368312960,0.2597,4421.7,4421.2,21.5341]
[1755368313160,0.8397,4421.7,4421.6,1.4652]
[1755368313461,0.8397,4421.7,4421.6,22.4172]
[1755368313858,3.2078,4422.2,4422.0,0.8246]
[1755368313859,0.3256,4422.1,4422.0,0.8246]
[1755368314057,3.2078,4422.2,4422.0,22.4152]
[1755368314260,3.2078,4422.2,4422.1,1.4652]
[1755368314561,0.5141,4422.4,4422.1,1.4652]
[1755368314761,0.5141,4422.4,4422.0,20.95]
[1755368314762,0.5853,4422.4,4422.3,0.5831]
[1755368314963,0.8397,4422.4,4422.3,22.4342]
[1755368315361,0.841,4422.4,4422.3,22.4342]
[1755368315669,0.8431,4422.4,4422.3,22.184]
[1755368315967,0.8431,4421.8,4421.7,4.0127]
[1755368316167,0.8431,4421.8,4421.7,25.2202]
[1755368316363,0.8431,4421.8,4421.7,24.5883]
[1755368316569,0.8431,4421.8,4421.7,25.2202]
[1755368316867,0.8431,4421.8,4421.7,25.3888]
[1755368317065,3.2078,4422.7,4421.8,0.3904]
[1755368317066,0.5154,4422.6,4421.8,0.3904]
[1755368317264,0.8431,4422.6,4422.5,1.215]
[1755368317567,0.8431,4422.6,4422.5,22.187]
[1755368317765,0.8397,4422.6,4422.5,22.4372]
[1755368317966,0.3256,4422.6,4422.5,22.4372]
[1755368318165,0.58,4422.6,4422.5,22.4372]
[1755368319168,0.8431,4422.6,4422.5,0.8049]
[1755368319364,0.8431,4422.6,4422.5,1.0464]
[1755368319766,0.8431,4422.6,4422.5,22.0114]
[1755368320167,0.8431,4422.6,4422.5,1.0464]
[1755368320369,0.8431,4422.6,4422.5,22.0074]
[1755368321373,0.8431,4422.6,4422.5,1.0464]
[1755368321869,0.8431,4422.6,4422.5,0.2401]
[1755368322467,0.3277,4422.4,4422.3,21.1921]
[1755368322770,0.8431,4422.4,4422.3,21.1921]
[1755368322970,0.8431,4422.4,4422.3,22.167]
[1755368323170,0.8431,4422.4,4422.3,22.4172]
[1755368323568,0.8431,4422.4,4422.3,1.4652]
[1755368323768,0.8431,4422.4,4422.3,1.215]
[1755368324173,0.8431,4422.2,4422.1,20.946]
[1755368324873,0.2544,4422.1,4422.0,0.2401]
[1755368325071,0.5821,4422.1,4422.0,0.4145]
[1755368325376,0.5821,4422.6,4422.5,0.4145]
[1755368325568,0.8431,4422.6,4422.5,1.215]
[1755368325764,0.8431,4422.6,4422.5,1.4652]
[1755368326073,0.2544,4422.8,4422.5,1.4652]
[1755368326269,0.58,4422.8,4422.7,1.4652]
[1755368326664,0.8397,4422.8,4422.7,1.4652]
[1755368327265,0.841,4422.8,4422.7,1.4652]
[1755368327870,0.8431,4422.8,4422.7,1.4652]
[1755368328072,0.8431,4422.8,4422.7,1.215]
[1755368328277,1.04558317,4422.8,4422.7,1.215]
[1755368328479,1.04558317,4422.8,4422.2,3.2078]
[1755368328679,0.3256,4422.3,4422.2,4.4228]
[1755368328882,0.8351,4422.3,4422.2,0.4145]
[1755368329085,0.8351,4422.3,4422.2,0.8008]
[1755368329482,0.8351,4422.3,4422.2,1.0562]
[1755368331186,1.03813091,4422.3,4422.2,1.0562]
[1755368331386,1.03813091,4422.3,4422.2,1.2307]
[1755368331986,1.03813091,4422.3,4422.2,1.4735]
[1755368332883,1.03813091,4422.3,4422.2,1.0562]
[1755368333081,1.03813091,4422.3,4421.7,3.2078]
[1755368333082,0.3421,4421.9,4421.8,1.2444]
[1755368333276,1.05183091,4421.9,4421.8,1.4872]
[1755368333481,0.79763091,4421.9,4421.8,1.4872]
[1755368333680,0.37463091,4421.9,4421.8,1.4872]
[1755368335089,0.79763091,4421.9,4421.8,1.4872]
[1755368336693,0.79824033,4421.9,4421.8,1.4872]
[1755368336891,0.79824033,4421.9,4421.7,20.946]
[1755368337187,1.05244033,4421.8,4421.7,0.989]
[1755368337384,0.20364033,4421.8,4421.7,0.4282]
[1755368337588,1.05324033,4421.8,4421.7,21.1742]
[1755368337777,1.05324033,4421.8,4421.7,21.5605]
[1755368337980,1.05324033,4421.8,4421.7,21.7305]
[1755368338186,1.05324033,4421.8,4421.7,21.9859]
[1755368338583,1.05324033,4421.8,4421.7,1.0699]
[1755368338786,1.05324033,4421.8,4421.7,21.9859]
[1755368339187,0.3429,4421.3,4421.2,4.0223]
[1755368339482,1.05324033,4421.3,4421.2,25.3672]
[1755368339689,1.05324033,4421.3,4421.2,25.61]
[1755368339984,1.05324033,4421.3,4420.5,32.6076]
[1755368339985,1.05324033,4421.3,4420.7,3.2078]
[1755368340182,0.8488,4420.8,4420.7,4.4522]
[1755368340382,1.05244033,4420.8,4420.7,1.4872]
[1755368340576,1.05324033,4420.8,4420.6,20.915]
[1755368340783,1.05324033,4420.7,4420.6,20.915]
[1755368341282,0.8496,4420.2,4419.6,3.2078]
[1755368341479,0.1724,4419.8,4419.7,0.2582]
[1755368341677,0.8496,4419.8,4419.7,22.1694]
[1755368341885,0.5946,4419.8,4419.7,22.4122]
[1755368342084,0.1716,4419.8,4419.7,22.4122]
[1755368342493,0.4266,4419.9,4419.8,1.0699]
[1755368342688,1.0530354,4419.9,4419.8,21.9949]
[1755368343284,0.3429,4419.9,4419.6,3.2078]
[1755368343489,0.8496,4419.8,4419.7,21.7345]
[1755368343683,0.8496,4419.8,4419.7,22.1644]
[1755368343886,0.8496,4419.8,4419.7,22.4072]
[1755368344192,0.2525,4420.6,4420.5,0.6027]
[1755368344395,0.2032525,4420.6,4420.5,1.4872]
[1755368344688,3.2078,4420.8,4420.6,0.8845]
[1755368344888,3.2078,4420.8,4420.7,22.4302]
[1755368345091,4.26053169,4420.8,4420.7,1.2444]
[1755368345393,4.26053169,4420.8,4420.7,21.3712]
[1755368346282,4.26053169,4420.8,4420.7,0.2582]
[1755368346794,0.2525,4421.1,4420.7,1.4872]
[1755368347094,0.2525,4421.1,4420.5,20.946]
[1755368347095,0.79931794,4421.0,4420.9,1.4872]
[1755368347291,0.80011296,4421.0,4420.9,1.4872]
[1755368347493,0.80011296,4421.0,4420.9,1.2444]
[1755368347688,1.05261296,4421.0,4420.9,1.4872]
[1755368347893,0.79761296,4421.0,4420.9,1.4872]
[1755368348386,1.05261296,4421.0,4420.9,0.2582]
[1755368348588,0.8496,4420.4,4420.3,0.2582]
[1755368348795,1.05263013,4420.4,4420.3,0.2582]
[1755368349189,0.3421,4419.8,4419.7,4.0223]
[1755368349494,0.8488,4419.8,4419.7,25.63]
[1755368351090,0.8488,4419.8,4419.7,22.4222]
[1755368351290,0.5954,4419.7,4419.6,0.2582]
[1755368351490,0.3421,4419.4,4419.3,0.8145]
[1755368351691,0.5946,4419.4,4419.3,1.4872]
[1755368351890,0.8488,4419.4,4419.3,1.4872]
[1755368352187,0.8496,4419.4,4419.3,1.2444]
[1755368352788,0.8496,4419.4,4419.3,1.4872]
[1755368353382,0.5067,4420.1,4419.4,0.8845]
[1755368353693,0.8488,4420.1,4420.0,1.4872]
[1755368353888,3.2078,4420.3,4420.0,1.4872]
[1755368354081,3.8024,4420.3,4420.2,0.6027]
[1755368354286,4.26159389,4420.3,4420.2,1.4872]
[1755368354685,4.26239389,4420.3,4420.2,1.4872]
[1755368354892,0.8496,4419.8,4419.7,0.6445]
[1755368355087,0.8496,4419.8,4419.2,3.4506]
[1755368355396,0.8496,4419.4,4419.3,21.5457]
[1755368355593,0.8496,4419.4,4419.3,21.3712]
[1755368355793,0.8496,4419.4,4419.3,21.3802]
[1755368355994,0.5067,4420.2,4419.3,1.1009]
[1755368356190,0.3421,4419.5,4419.4,0.989]
[1755368356390,0.8488,4419.5,4419.4,1.2444]
[1755368356591,0.8496,4419.5,4419.4,1.2444]
[1755368358596,0.8496,4419.5,4419.4,0.8145]
[1755368358896,0.8496,4419.5,4419.3,20.941]
[1755368359093,0.3429,4419.5,4419.3,20.941]
[1755368359286,0.8259,4419.4,4419.3,21.1892]
[1755368359484,0.8259,4419.4,4419.3,21.7238]
[1755368359990,0.8259,4419.4,4419.3,22.1419]
[1755368360191,0.8259,4419.4,4419.3,22.4036]
[1755368361293,0.8259,4419.4,4419.3,22.3996]
[1755368361590,0.8259,4419.4,4419.3,21.1852]
[1755368361790,0.8259,4419.4,4419.3,22.1379]
[1755368361985,0.8259,4419.4,4419.3,1.2009]
[1755368362189,0.8259,4419.4,4419.3,0.4099]
[1755368362388,0.8259,4419.4,4419.0,0.2617]
[1755368362389,0.8259,4419.2,4419.1,20.925]
[1755368362589,0.8259,4419.2,4419.1,21.3349]
[1755368362796,0.5769,4419.2,4419.1,22.3876]
[1755368362992,0.2465,4419.4,4419.3,0.5731]
[1755368363196,0.5769,4419.7,4419.6,1.2009]
[1755368363395,0.5769,4419.7,4419.6,22.3846]
[1755368363893,0.8259,4419.7,4419.6,0.4099]
[1755368364097,3.2078,4419.8,4418.5,3.2078]
[1755368364098,0.3316,4419.5,4419.4,20.924]
[1755368364298,0.3316,4419.5,4419.4,0.4099]
[1755368364597,0.3316,4419.5,4419.4,0.7828]
[1755368364799,0.5794,4419.5,4419.4,0.7828]
[1755368364998,0.8259,4419.5,4419.4,0.7828]
[1755368365696,0.8259,4419.5,4419.4,1.0377]
[1755368366393,0.8259,4419.5,4418.5,3.2078]
[1755368366597,0.8259,4419.4,4419.3,0.2482]
[1755368367199,0.3304,4418.6,4418.5,4.4087]
[1755368367394,0.5769,4418.6,4418.5,25.5804]
[1755368367698,0.2478,4419.0,4418.5,24.6909]
[1755368367900,0.5769,4418.8,4418.7,0.5731]
[1755368368088,0.5769,4418.8,4418.7,1.4626]
[1755368368398,0.8247,4418.8,4418.7,1.4626]
[1755368368889,0.8259,4418.8,4418.7,1.2009]
[1755368369095,0.8259,4418.8,4418.7,22.1119]
[1755368369398,1.03164669,4418.8,4418.7,1.2009]
[1755368370987,1.03164669,4418.8,4418.7,1.4626]
[1755368371396,1.03164669,4418.8,4418.7,22.0999]
[1755368372296,1.03164669,4418.8,4418.7,0.1617]
[1755368372497,1.03164669,4418.8,4418.5,3.2078]
[1755368372498,0.53734669,4418.8,4418.5,20.896]
[1755368372701,0.8247,4418.6,4418.5,22.3586]
[1755368372897,3.2078,4419.3,4418.5,22.3586]
[1755368372898,0.4943,4419.2,4418.5,22.3586]
[1755368373197,0.3304,4418.7,4418.6,21.3059]
[1755368373400,1.03156474,4418.7,4418.6,22.1069]
[1755368373998,0.78256474,4418.7,4418.6,22.3686]
[1755368374194,1.03156474,4418.7,4418.6,1.2009]
[1755368374501,1.03156474,4418.7,4418.6,0.7828]
[1755368374797,0.0226,4419.9,4418.6,0.7828]
[1755368374798,0.2465,4419.1,4418.6,21.4771]
[1755368375098,0.5782,4419.1,4419.0,1.4626]
[1755368375293,0.78380618,4419.1,4419.0,1.4626]
[1755368375496,1.03030618,4419.1,4419.0,1.4626]
[1755368376002,0.2465,4419.8,4419.0,21.4791]
[1755368376194,0.2465,4419.1,4419.0,0.4099]
[1755368376402,0.78253065,4419.1,4419.0,1.4626]
[1755368376803,0.78253065,4419.1,4418.9,20.91]
[1755368376804,3.369,4419.9,4419.1,0.8895]
[1755368376998,0.3304,4419.5,4419.4,1.4626]
[1755368377198,1.03038821,4419.5,4419.4,1.4626]
[1755368378206,1.03158821,4419.5,4419.4,1.4626]
[1755368379401,0.4943,4419.4,4419.1,0.6278]
[1755368379602,0.8247,4419.2,4419.1,1.2994]
[1755368379801,1.0306518,4419.2,4419.1,1.4626]
[1755368380002,1.0318518,4419.2,4419.1,0.2482]
[1755368380202,0.3316,4418.9,4418.8,3.2078]
[1755368380401,1.0318518,4418.9,4418.8,3.2078]
[1755368380598,0.5375518,4418.9,4418.8,0.2482]
[1755368381304,1.0318518,4418.9,4418.8,0.2482]
[1755368381607,0.8259,4418.8,4418.7,0.2482]
[1755368381799,1.0318518,4418.8,4418.7,1.0377]
[1755368383599,1.0318518,4418.8,4418.4,20.927]
[1755368383806,0.5375518,4418.7,4418.6,0.7828]
[1755368384006,0.5375518,4418.7,4418.6,1.0377]
[1755368384408,1.0318518,4418.7,4418.6,1.2009]
[1755368386002,1.0318518,4418.7,4418.6,1.4626]
[1755368387706,1.0306518,4418.7,4418.6,1.4626]
[1755368388302,0.8247,4418.7,4418.6,1.4626]
[1755368388503,0.53665737,4418.7,4418.6,1.4626]
[1755368388708,0.20625737,4418.7,4418.6,1.4626]
[1755368389105,0.45265737,4418.7,4418.6,1.4626]
[1755368389607,0.54665737,4418.7,4418.6,1.2096]
[1755368389907,1.03685737,4418.7,4418.6,1.4545]
[1755368390308,1.03685737,4418.7,4418.6,1.2096]
[1755368390508,1.03825737,4418.7,4418.6,21.1362]
[1755368390908,1.03825737,4418.7,4418.6,21.675]
[1755368391303,1.03825737,4418.7,4418.6,21.9386]
[1755368391710,1.03825737,4418.7,4418.6,21.3023]
[1755368392008,1.03825737,4418.7,4418.6,21.675]
[1755368392411,1.03825737,4418.7,4418.6,22.1132]
[1755368392614,0.79305737,4418.7,4418.6,22.3581]
[1755368392910,1.03605737,4418.7,4418.6,1.4701]
[1755368393111,1.03685737,4418.7,4418.6,22.3461]
[1755368393607,1.03825737,4418.7,4418.6,22.3461]
[1755368394508,1.03825737,4418.7,4418.6,22.1012]
[1755368395605,1.03825737,4418.7,4417.9,21.2755]
[1755368395606,0.2452,4418.0,4417.9,21.2755]
[1755368395811,1.03825737,4418.0,4417.9,0.4085]
[1755368396002,0.176,4417.3,4417.2,4.2994]
[1755368396206,0.45265737,4417.7,4417.2,4.6721]
[1755368396408,0.3404,4417.4,4417.3,0.8812]
[1755368396608,0.79305737,4417.4,4417.3,1.4643]
[1755368397106,1.03613436,4417.4,4417.3,1.4643]
[1755368398314,1.03693436,4417.4,4417.3,1.4643]